bitfinex-derivatives/quotes_SOLF0:USTF0_20250606
["timestamp","ask_amount","ask_price","bid_price","bid_amount"]
[1749230926349,7.272166,149.63,149.57,7.272166]
[1749230926949,6.6784,149.61,149.58,6.6792]
[1749230927151,6.72179229,149.61,149.58,6.72270248]
[1749230928053,6.6786,149.6,149.58,6.72270248]
[1749230928656,6.679,149.59,149.58,0.04350248]
[1749230931054,7.272166,149.59,149.53,1.16350992]
[1749230931251,7.272166,149.59,149.51,7.272166]
[1749230931860,6.6802,149.57,149.53,13.953466]
[1749230932161,0.04710063,149.56,149.54,0.05104048]
[1749230932363,0.04710063,149.56,149.54,6.73224048]
[1749230933257,0.04710063,149.56,149.54,0.05104048]
[1749230934051,0.04710063,149.56,149.54,6.73204048]
[1749230934963,0.04710063,149.56,149.55,6.6808]
[1749230936557,0.04710063,149.56,149.54,0.05104048]
[1749230936763,0.04710063,149.56,149.54,6.73214048]
[1749230936962,0.04710063,149.56,149.54,0.05104048]
[1749230937664,0.04710063,149.56,149.55,6.6808]
[1749230939362,6.16057204,149.67,149.55,482.312166]
[1749230939562,7.272166,149.7,149.62,7.272166]
[1749230939768,4.325,149.72,149.62,7.272166]
[1749230939969,7.272166,149.69,149.62,7.272166]
[1749230940362,0.04589789,149.67,149.64,6.72449632]
[1749230941667,6.72139789,149.67,149.64,0.04799632]
[1749230942767,6.72139789,149.67,149.64,6.72449632]
[1749230943573,0.04589789,149.67,149.65,6.6763]
[1749230945276,0.04589789,149.67,149.64,13.99676232]
[1749230945469,0.04589789,149.67,149.64,7.32016232]
[1749230946672,0.04589789,149.67,149.64,6.72449632]
[1749230946880,0.04589789,149.67,149.64,7.32016232]
[1749230947278,6.72139789,149.67,149.64,13.99666232]
[1749230948783,0.04589789,149.67,149.65,6.6763]
[1749230949182,0.04589789,149.67,149.64,7.32016232]
[1749230949681,6.72149789,149.67,149.64,13.99666232]
[1749230949881,0.04589789,149.67,149.64,7.32016232]
[1749230950490,0.04589789,149.67,149.65,6.676]
[1749230952483,0.04589789,149.67,149.65,13.948166]
[1749230952884,0.04589789,149.67,149.65,7.272166]
[1749230953976,0.04589789,149.67,149.65,13.948266]
[1749230955182,0.04589789,149.67,149.66,6.6759]
[1749230960187,0.04589789,149.67,149.64,0.04799632]
[1749230960779,6.72159789,149.67,149.64,6.72459632]
[1749230961378,0.04589789,149.67,149.64,6.72459632]
[1749230961574,6.676,149.66,149.64,6.72459632]
[1749230961776,0.04589789,149.67,149.64,0.04799632]
[1749230962181,6.6759,149.66,149.64,0.04799632]
[1749230962385,0.04589789,149.67,149.64,0.04799632]
[1749230963277,6.6764,149.65,149.64,0.04799632]
[1749230975197,6.6761,149.66,149.64,0.04799632]
[1749230975398,2.35539789,149.67,149.64,0.04799632]
[1749230976193,6.6759,149.66,149.64,0.04799632]
[1749230976392,2.35539789,149.67,149.64,0.04799632]
[1749230977699,6.6764,149.65,149.64,0.04799632]
[1749230978497,6.6761,149.66,149.64,0.04799632]
[1749230978697,2.35539789,149.67,149.64,0.04799632]
[1749230979302,6.6764,149.65,149.64,0.04799632]
[1749230990604,13.948566,149.65,149.64,0.04799632]
[1749230990809,6.678,149.62,149.6,6.6786]
[1749230991211,6.678,149.62,149.6,11.32825675]
[1749230991910,6.72908525,149.62,149.6,11.3761149]
[1749230992113,6.72908525,149.62,149.61,4.64965675]
[1749230993207,6.72908525,149.62,149.6,6.72645815]
[1749230995012,6.6781,149.61,149.6,0.04785815]
[1749230996011,0.05108525,149.62,149.6,0.04785815]
[1749230996811,6.72918525,149.62,149.6,0.04785815]
[1749230997214,6.72918525,149.62,149.6,6.72645815]
[1749230998402,6.72918525,149.62,149.6,0.04785815]
[1749231000216,6.6781,149.61,149.6,0.04785815]
[1749231001215,6.72898525,149.62,149.6,0.04785815]
[1749231001622,0.05108525,149.62,149.6,6.72605815]
[1749231002128,0.05108525,149.62,149.61,6.6781]
[1749231004518,0.05108525,149.62,149.61,12.92331053]
[1749231005218,34.4,149.67,149.61,6.24521053]
[1749231005419,34.4,149.67,149.63,7.2641371]
[1749231005608,41.0757,149.67,149.64,6.6765]
[1749231006014,41.0757,149.67,149.64,6.72112076]
[1749231006015,34.44788334,149.67,149.64,6.72112076]
[1749231006213,41.12358334,149.67,149.65,6.6763]
[1749231006423,41.12358334,149.67,149.64,0.04462076]
[1749231006723,6.676,149.66,149.64,6.72112076]
[1749231006924,6.676,149.66,149.64,0.04462076]
[1749231007114,0.04788334,149.67,149.64,0.04462076]
[1749231007316,6.6763,149.65,149.64,0.04462076]
[1749231009618,41.0761,149.66,149.64,0.04462076]
[1749231009919,0.04788334,149.67,149.64,6.72132076]
[1749231010120,6.72358334,149.67,149.64,6.72132076]
[1749231010516,0.04788334,149.67,149.65,7.2641371]
[1749231011318,8.42065556,149.73,149.65,7.2641371]
[1749231011319,6.17655556,149.76,149.66,55.17433318]
[1749231011522,2.2552,149.78,149.72,7.2641371]
[1749231011720,6.6713,149.77,149.73,6.6725]
[1749231011916,6.6713,149.77,149.72,7.2641371]
[1749231012118,7.2641371,149.77,149.7,13.50522667]
[1749231012318,0.04273246,149.75,149.72,0.04669231]
[1749231012519,6.71493246,149.75,149.72,0.04669231]
[1749231012822,0.04273246,149.75,149.72,0.04669231]
[1749231013017,0.04273246,149.75,149.72,6.71969231]
[1749231013218,0.04273246,149.75,149.72,0.04669231]
[1749231013619,0.04273246,149.75,149.73,6.6725]
[1749231014518,0.04273246,149.75,149.72,7.31082941]
[1749231015724,0.04273246,149.75,149.74,7.2641371]
[1749231015924,0.04273246,149.75,149.72,7.31082941]
[1749231016125,0.04273246,149.75,149.72,0.04669231]
[1749231016523,6.6723,149.74,149.72,0.04669231]
[1749231016923,0.04273246,149.75,149.72,0.04669231]
[1749231017223,6.6728,149.73,149.72,0.04669231]
[1749231022834,13.9369371,149.73,149.72,0.04669231]
[1749231023035,6.6746,149.69,149.67,6.6753]
[1749231023238,6.6746,149.69,149.65,7.2641371]
[1749231023629,6.6746,149.69,149.66,6.6756]
[1749231023827,6.6742,149.7,149.65,7.2641371]
[1749231024025,36.4947,149.72,149.67,7.2641371]
[1749231024231,0.05104225,149.69,149.67,7.2641371]
[1749231024731,0.05104225,149.69,149.67,6.6752]
[1749231024927,0.05104225,149.69,149.66,0.05121594]
[1749231025130,6.72564225,149.69,149.66,6.72681594]
[1749231025532,6.72564225,149.69,149.66,0.05121594]
[1749231025731,0.05104225,149.69,149.67,6.6752]
[1749231025937,0.05104225,149.69,149.66,0.05121594]
[1749231026433,0.05104225,149.69,149.68,6.675]
[1749231026633,0.05104225,149.69,149.66,0.05121594]
[1749231026830,0.05104225,149.69,149.67,6.6751]
[1749231027034,0.05104225,149.69,149.66,0.05121594]
[1749231027431,0.05104225,149.69,149.67,6.6751]
[1749231027933,0.05104225,149.69,149.66,0.05121594]
[1749231028632,0.05104225,149.69,149.67,6.6755]
[1749231030536,7.31517935,149.69,149.66,0.05121594]
[1749231030730,7.2641371,149.67,149.66,0.05121594]
[1749231030935,13.9396371,149.67,149.66,0.05121594]
[1749231033640,6.677,149.64,149.6,34.38]
[1749231033832,6.677,149.64,149.59,9.3926371]
[1749231034032,6.677,149.64,149.61,6.6779]
[1749231034639,6.677,149.64,149.61,6.72267276]
[1749231034640,6.7257213,149.64,149.61,6.72267276]
[1749231034839,6.7257213,149.64,149.62,6.6777]
[1749231035338,0.0487213,149.64,149.61,0.04477276]
[1749231035539,0.0487213,149.64,149.62,6.6777]
[1749231035737,0.0487213,149.64,149.61,0.04477276]
[1749231035934,0.0487213,149.64,149.61,7.30890986]
[1749231036133,0.0487213,149.64,149.63,6.6772]
[1749231036339,0.0487213,149.64,149.63,13.9413371]
[1749231037142,0.0487213,149.64,149.63,6.6772]
[1749231044134,41.0552,149.68,149.62,13.50522667]
[1749231044135,34.38,149.68,149.62,13.50522667]
[1749231044336,34.38,149.68,149.65,7.2641371]
[1749231044538,34.36,149.71,149.65,7.2641371]
[1749231044842,6.6743,149.7,149.67,6.675]
[1749231045137,6.71846113,149.7,149.68,6.6748]
[1749231046339,0.04416113,149.7,149.69,6.6746]
[1749231046541,0.04416113,149.7,149.67,7.30948093]
[1749231047042,0.04416113,149.7,149.68,6.6746]
[1749231047243,0.04416113,149.7,149.67,0.04534383]
[1749231047943,0.04416113,149.7,149.67,6.72054383]
[1749231048441,6.71866113,149.7,149.67,6.72054383]
[1749231048742,6.71866113,149.7,149.68,6.675]
[1749231048943,0.04416113,149.7,149.68,6.675]
[1749231050032,0.04416113,149.7,149.67,6.72064383]
[1749231050237,6.71866113,149.7,149.67,6.72064383]
[1749231050536,6.71866113,149.7,149.67,0.04534383]
[1749231050946,6.71866113,149.7,149.68,6.675]
[1749231051644,0.04416113,149.7,149.68,6.675]
[1749231051944,0.04416113,149.7,149.69,6.6746]
[1749231052146,0.04416113,149.7,149.67,0.04534383]
[1749231052544,6.71836113,149.7,149.68,6.6747]
[1749231052742,0.04416113,149.7,149.68,6.6747]
[1749231053346,0.04416113,149.7,149.67,6.72064383]
[1749231053744,0.04416113,149.7,149.67,0.04534383]
[1749231054837,6.71856113,149.7,149.67,0.04534383]
[1749231055443,6.6746,149.69,149.67,6.72054383]
[1749231057150,6.71846113,149.7,149.68,6.6749]
[1749231059346,0.04416113,149.7,149.67,0.04534383]
[1749231059950,6.6751,149.69,149.67,0.04534383]
[1749231060148,0.04416113,149.7,149.67,0.04534383]
[1749231060344,6.6752,149.68,149.67,0.04534383]
[1749231062049,13.9391371,149.69,149.67,0.04534383]
[1749231062439,7.2641371,149.69,149.67,0.04534383]
[1749231063652,6.6752,149.68,149.67,0.04534383]
[1749231068054,11.0328,149.69,149.67,0.04534383]
[1749231068256,11.6221371,149.69,149.67,0.04534383]
[1749231068854,6.6752,149.68,149.67,0.04534383]
[1749231070960,11.6221371,149.69,149.62,6.24108957]
[1749231071159,7.2641371,149.65,149.62,6.24108957]
[1749231071461,7.2641371,149.65,149.61,6.24108957]
[1749231071759,6.6773,149.64,149.61,12.91918957]
[1749231071962,6.7274253,149.64,149.61,12.96158162]
[1749231073953,6.7274253,149.64,149.61,6.72049205]
[1749231074561,0.0501253,149.64,149.62,6.6777]
[1749231075065,6.7271253,149.64,149.62,6.6777]
[1749231075266,6.7271253,149.64,149.61,6.72049205]
[1749231076165,0.0501253,149.64,149.62,6.6778]
[1749231076467,0.0501253,149.64,149.61,0.04239205]
[1749231076665,6.7273253,149.64,149.61,6.72049205]
[1749231076858,0.0501253,149.64,149.61,6.72049205]
[1749231077658,6.6775,149.63,149.61,6.72049205]
[1749231077864,0.0501253,149.64,149.61,6.72049205]
[1749231078366,6.7273253,149.64,149.61,6.72049205]
[1749231078862,0.0501253,149.64,149.61,0.04239205]
[1749231079061,6.6779,149.63,149.61,0.04239205]
[1749231079564,7.2641371,149.63,149.61,0.04239205]
[1749231080161,6.6779,149.62,149.61,0.04239205]
[1749231080367,7.2641371,149.63,149.61,0.04239205]
[1749231080762,13.9418371,149.63,149.61,0.04239205]
[1749231080961,7.2641371,149.63,149.61,0.04239205]
[1749231081559,34.3701253,149.64,149.61,0.04239205]
[1749231081767,34.3701253,149.64,149.61,6.72059205]
[1749231081961,41.0475253,149.64,149.61,6.72059205]
[1749231082163,34.3701253,149.64,149.61,0.04239205]
[1749231082358,7.2641371,149.63,149.61,0.04239205]
[1749231082558,6.6779,149.62,149.61,0.04239205]
[1749231082865,11.5277371,149.63,149.56,6.6804]
[1749231083066,13.9436371,149.59,149.56,6.6804]
[1749231083259,48.2636371,149.59,149.56,6.6804]
[1749231083868,6.6797,149.58,149.56,6.72288711]
[1749231084269,34.36219801,149.59,149.56,6.72288711]
[1749231084470,41.04169801,149.59,149.56,6.72288711]
[1749231084969,41.04169801,149.59,149.57,6.68]
[1749231085270,34.36219801,149.59,149.57,6.68]
[1749231085461,34.36219801,149.59,149.58,6.6797]
[1749231085968,34.34,149.62,149.57,7.2641371]
[1749231086163,34.34,149.65,149.63,6.6774]
[1749231086774,34.34,149.65,149.62,6.6776]
[1749231087071,34.38749977,149.65,149.62,6.72212334]
[1749231087571,41.06419977,149.65,149.62,6.72212334]
[1749231087759,41.06419977,149.65,149.63,6.6774]
[1749231087958,34.38749977,149.65,149.63,6.6774]
[1749231088966,34.38749977,149.65,149.64,6.677]
[1749231089366,34.38749977,149.65,149.62,0.04452334]
[1749231089367,41.06409977,149.65,149.63,6.6772]
[1749231090169,6.677,149.64,149.62,0.04452334]
[1749231091167,34.38749977,149.65,149.62,0.04452334]
[1749231091572,6.6771,149.64,149.62,0.04452334]
[1749231093375,6.6774,149.63,149.62,0.04452334]
[1749231093967,6.6771,149.64,149.62,0.04452334]
[1749231096470,13.9415371,149.63,149.62,0.04452334]
[1749231098977,6.6771,149.64,149.62,0.04452334]
[1749231099881,6.6774,149.63,149.62,0.04452334]
[1749231100181,34.38749977,149.65,149.62,0.04452334]
[1749231100580,6.6773,149.64,149.62,0.04452334]
[1749231101082,6.6774,149.63,149.62,0.04452334]
[1749231103585,6.6789,149.6,149.56,2.1274]
[1749231103776,34.3,149.61,149.56,2.1274]
[1749231103978,41.5641371,149.61,149.58,6.6795]
[1749231104589,6.6789,149.6,149.58,0.04827099]
[1749231105587,6.6792,149.59,149.58,0.04827099]
[1749231105785,13.9433371,149.59,149.58,0.04827099]
[1749231107684,7.2641371,149.59,149.58,0.04827099]
[1749231108085,13.9433371,149.59,149.58,0.04827099]
[1749231108691,34.34935297,149.61,149.58,0.04827099]
[1749231108692,48.29199007,149.61,149.58,0.04827099]
[1749231108991,41.61349007,149.61,149.58,0.04827099]
[1749231109786,6.6788,149.6,149.58,0.04827099]
[1749231110379,41.61349007,149.61,149.58,0.04827099]
[1749231110785,41.61349007,149.61,149.59,6.6789]
[1749231111392,48.29199007,149.61,149.58,6.72767099]
[1749231112092,41.61349007,149.61,149.58,6.72767099]
[1749231112793,48.29199007,149.61,149.58,6.72767099]
[1749231113692,34.34935297,149.61,149.58,0.04827099]
[1749231114296,34.34935297,149.61,149.6,6.6787]
[1749231114898,34.34935297,149.61,149.59,6.6789]
[1749231115491,41.02765297,149.61,149.59,6.6789]
[1749231116604,41.02765297,149.61,149.58,6.72767099]
[1749231116795,6.6789,149.6,149.58,6.72767099]
[1749231117194,6.6789,149.6,149.58,0.04827099]
[1749231117596,6.6792,149.59,149.58,0.04827099]
[1749231118698,6.6789,149.6,149.58,0.04827099]
[1749231118902,6.6789,149.6,149.48,401.29253759]
[1749231118903,14.5282742,149.59,149.53,6.24108957]
[1749231119106,6.681,149.55,149.52,6.6821]
[1749231119398,7.2641371,149.54,149.51,6.24108957]
[1749231119707,7.2641371,149.54,149.49,8.53478957]
[1749231119903,0.05010322,149.53,149.51,6.6824]
[1749231120105,7.2641371,149.52,149.5,0.04306342]
[1749231122403,7.2641371,149.52,149.51,6.6827]
[1749231122701,34.35010322,149.53,149.5,0.04306342]
[1749231122907,34.35010322,149.53,149.52,6.6823]
[1749231124310,34.35010322,149.53,149.51,6.6825]
[1749231124804,34.35010322,149.53,149.51,6.6827]
[1749231125005,7.2641371,149.52,149.5,0.04306342]
[1749231125406,13.9466371,149.52,149.5,0.04306342]
[1749231125604,7.2641371,149.52,149.5,0.04306342]
[1749231126202,6.6827,149.51,149.5,0.04306342]
[1749231126606,6.6842,149.48,149.44,2.2937]
[1749231126808,7.2641371,149.47,149.41,47.78522667]
[1749231127004,7.2641371,149.47,149.41,41.5441371]
[1749231127402,7.2641371,149.47,149.41,7.2641371]
[1749231127600,34.28,149.49,149.43,0.04944106]
[1749231127806,0.04811547,149.45,149.43,0.04944106]
[1749231128001,7.31225257,149.45,149.43,0.04944106]
[1749231128204,6.6859,149.44,149.43,0.04944106]
[1749231128404,41.59225257,149.45,149.43,0.04944106]
[1749231128803,34.32811547,149.45,149.43,0.04944106]
[1749231129309,41.59225257,149.45,149.43,0.04944106]
[1749231131014,34.32811547,149.45,149.43,0.04944106]
[1749231133413,6.6859,149.44,149.43,0.04944106]
[1749231133821,34.32811547,149.45,149.43,0.04944106]
[1749231136220,41.01351547,149.45,149.43,0.04944106]
[1749231137523,6.6859,149.44,149.43,0.04944106]
[1749231138321,41.01381547,149.45,149.43,0.04944106]
[1749231138520,34.32811547,149.45,149.43,0.04944106]
[1749231139121,6.6859,149.44,149.43,0.04944106]
[1749231139324,13.9500371,149.44,149.43,0.04944106]
[1749231142017,13.9500371,149.44,149.43,4.106e-05]
[1749231143021,18.3752371,149.44,149.43,4.106e-05]
[1749231145922,11.1111,149.44,149.43,4.106e-05]
[1749231146121,18.3752371,149.44,149.43,4.106e-05]
[1749231146616,16.1846371,149.44,149.43,4.106e-05]
[1749231147018,13.9500371,149.44,149.43,4.106e-05]
[1749231148532,7.2641371,149.44,149.35,2.273]
[1749231148734,7.2641371,149.41,149.37,6.6889]
[1749231149031,6.6879,149.4,149.37,6.6889]
[1749231149417,41.5841371,149.41,149.36,6.6892]
[1749231149629,0.04600487,149.4,149.37,0.04792085]
[1749231150128,6.6881,149.39,149.37,0.04792085]
[1749231150427,0.04600487,149.4,149.37,0.04792085]
[1749231150625,6.6881,149.39,149.37,0.04792085]
[1749231150823,0.04600487,149.4,149.37,0.04792085]
[1749231151230,6.6886,149.38,149.37,0.04792085]
[1749231151419,0.04600487,149.4,149.37,0.04792085]
[1749231151621,7.31014197,149.4,149.37,0.04792085]
[1749231151819,6.6886,149.38,149.37,0.04792085]
[1749231152624,13.9527371,149.38,149.37,0.04792085]
[1749231155028,13.9527371,149.38,149.28,1.16532164]
[1749231155029,145.4082742,149.38,149.28,1.16532164]
[1749231155235,145.4082742,149.38,149.28,7.2641371]
[1749231155236,7.2641371,149.35,149.28,7.2641371]
[1749231156028,7.2641371,149.3,149.25,6.6352]
[1749231156237,0.04718327,149.29,149.26,0.04582162]
[1749231157234,0.04718327,149.29,149.26,7.30995872]
[1749231157433,0.04718327,149.29,149.28,6.693]
[1749231158930,0.04718327,149.29,149.27,6.6933]
[1749231159731,0.04718327,149.29,149.27,6.6932]
[1749231160635,0.04718327,149.29,149.28,6.693]
[1749231165134,34.34,149.32,149.31,6.6917]
[1749231165738,34.34,149.32,149.3,6.692]
[1749231166134,34.38868845,149.32,149.3,6.73463614]
[1749231166438,41.07998845,149.32,149.3,6.73463614]
[1749231166642,34.38868845,149.32,149.3,6.73463614]
[1749231166827,34.38868845,149.32,149.31,6.6917]
[1749231167335,0.04868845,149.32,149.31,6.6917]
[1749231167534,34.36,149.35,149.3,7.30677324]
[1749231168334,34.36,149.35,149.31,4.414]
[1749231168534,34.36,149.35,149.34,6.6903]
[1749231168740,34.36,149.35,149.33,0.04894595]
[1749231169138,34.36,149.35,149.33,6.73964595]
[1749231169839,34.36,149.35,149.34,6.6903]
[1749231170239,0.04784886,149.36,149.34,6.6903]
[1749231171043,6.73754886,149.36,149.34,6.6903]
[1749231171347,0.04784886,149.36,149.34,6.6903]
[1749231173946,6.73734886,149.36,149.34,6.6903]
[1749231174951,6.73734886,149.36,149.33,0.04894595]
[1749231176848,6.73734886,149.36,149.34,6.6903]
[1749231178238,6.73734886,149.36,149.33,0.04894595]
[1749231178445,6.6902,149.35,149.33,0.04894595]
[1749231178643,0.04784886,149.36,149.33,0.04894595]
[1749231178843,0.04784886,149.36,149.34,6.69]
[1749231179549,6.73754886,149.36,149.34,6.69]
[1749231179943,0.04784886,149.36,149.34,6.69]
[1749231180249,0.04784886,149.36,149.35,6.6899]
[1749231181954,0.04784886,149.36,149.34,6.69]
[1749231182544,6.73734886,149.36,149.34,6.69]
[1749231184157,0.04784886,149.36,149.33,0.04894595]
[1749231184752,6.73754886,149.36,149.33,0.04894595]
[1749231184948,0.04784886,149.36,149.33,0.04894595]
[1749231185352,0.04784886,149.36,149.33,6.73954595]
[1749231185959,6.73764886,149.36,149.33,6.73954595]
[1749231186156,6.73764886,149.36,149.34,6.6903]
[1749231186557,6.73764886,149.36,149.33,0.04894595]
[1749231186752,6.73764886,149.36,149.33,6.73944595]
[1749231186953,6.69,149.35,149.33,0.04894595]
[1749231187357,6.69,149.35,149.33,6.73954595]
[1749231187552,6.73764886,149.36,149.33,6.73954595]
[1749231188564,6.69,149.35,149.33,0.04894595]
[1749231189259,6.6903,149.34,149.33,0.04894595]
[1749231190356,41.0103,149.34,149.33,0.04894595]
[1749231194564,34.32,149.34,149.33,0.04894595]
[1749231195161,41.0103,149.34,149.33,0.04894595]
[1749231203675,48.2744371,149.34,149.33,0.04894595]
[1749231208783,41.0103,149.34,149.33,0.04894595]
[1749231209075,48.2744371,149.34,149.33,0.04894595]
[1749231210680,34.32,149.34,149.33,0.04894595]
[1749231211278,41.0103,149.34,149.33,0.04894595]
[1749231211676,34.32,149.34,149.33,0.04894595]
[1749231212572,41.0103,149.34,149.33,0.04894595]
[1749231213675,34.32,149.34,149.33,6.73974595]
[1749231213874,0.04784886,149.36,149.33,6.73974595]
[1749231214082,0.04784886,149.36,149.33,0.04894595]
[1749231214975,7.2641371,149.35,149.33,0.04894595]
[1749231215378,6.6903,149.34,149.33,0.04894595]
[1749231216787,6.6921,149.3,149.28,6.17141154]
[1749231217171,41.5841371,149.32,149.28,6.17141154]
[1749231217172,6.6926,149.29,149.28,6.17141154]
[1749231217578,7.2641371,149.3,149.27,6.17141154]
[1749231217773,6.693,149.28,149.27,6.21565079]
[1749231218375,6.693,149.28,149.27,0.04423925]
[1749231218782,7.309227,149.3,149.27,0.04423925]
[1749231218783,6.6928,149.29,149.27,0.04423925]
[1749231218983,0.0450899,149.3,149.28,6.693]
[1749231219180,0.0450899,149.3,149.27,0.04423925]
[1749231219580,0.0450899,149.3,149.28,6.693]
[1749231220287,0.0450899,149.3,149.27,6.73753925]
[1749231220587,0.0450899,149.3,149.27,7.30837635]
[1749231222287,0.0450899,149.3,149.29,6.6926]
[1749231222687,0.0450899,149.3,149.29,13.9567371]
[1749231229197,0.0450899,149.3,149.29,7.2641371]
[1749231229391,0.0450899,149.3,149.27,17.75298789]
[1749231229591,0.0450899,149.3,149.27,17.83233784]
[1749231229799,0.0450899,149.3,149.28,6.6927]
[1749231229997,0.0450899,149.3,149.28,12.94346149]
[1749231230199,0.0450899,149.3,149.28,6.25076149]
[1749231230402,0.0450899,149.3,149.29,6.6926]
[1749231232601,426.571,149.33,149.32,6.6912]
[1749231232602,34.32,149.33,149.32,6.6912]
[1749231232806,34.32,149.33,149.3,6.25167206]
[1749231233508,34.32,149.33,149.31,6.6914]
[1749231233804,34.36711907,149.33,149.31,6.7395756]
[1749231234006,41.05811907,149.33,149.31,0.0481756]
[1749231234304,34.36711907,149.33,149.31,0.0481756]
[1749231234504,34.36711907,149.33,149.31,6.7397756]
[1749231235204,41.05791907,149.33,149.31,6.7397756]
[1749231235606,34.36711907,149.33,149.31,6.7397756]
[1749231236604,34.36711907,149.33,149.31,0.0481756]
[1749231237209,34.36711907,149.33,149.31,6.7395756]
[1749231237712,34.36711907,149.33,149.32,6.6912]
[1749231237906,0.04711907,149.33,149.32,6.6912]
[1749231238705,0.04711907,149.33,149.31,6.7396756]
[1749231239799,0.04711907,149.33,149.32,6.6912]
[1749231240613,0.04711907,149.33,149.32,6.25167206]
[1749231240806,0.04711907,149.33,149.31,13.56398476]
[1749231241006,0.04711907,149.33,149.32,6.25167206]
[1749231241510,0.04711907,149.33,149.32,12.94287206]
[1749231243812,0.04711907,149.33,149.32,20.20700916]
[1749231246513,0.04711907,149.33,149.32,12.94287206]
[1749231246713,0.04711907,149.33,149.32,20.20700916]
[1749231247916,0.04711907,149.33,149.32,13.9553371]
[1749231248217,0.04711907,149.33,149.32,20.20700916]
[1749231248410,0.04711907,149.33,149.32,12.94287206]
[1749231248611,0.04711907,149.33,149.32,13.9553371]
[1749231249012,0.04711907,149.33,149.32,20.20700916]
[1749231249717,0.04711907,149.33,149.32,12.94287206]
[1749231249907,0.04711907,149.33,149.32,6.6912]
[1749231251413,0.04711907,149.33,149.31,13.56398476]
[1749231251414,0.04711907,149.33,149.31,20.25568476]
[1749231251612,0.04711907,149.33,149.31,13.56398476]
[1749231251907,0.04711907,149.33,149.31,7.3123127]
[1749231252315,0.04711907,149.33,149.31,13.56398476]
[1749231253816,0.04711907,149.33,149.32,6.6912]
[1749231255916,0.04711907,149.33,149.31,20.25548476]
[1749231256113,0.04711907,149.33,149.31,6.29984766]
[1749231256309,0.04711907,149.33,149.31,0.0481756]
[1749231256521,6.6912,149.32,149.31,0.0481756]
[1749231266321,0.04711907,149.33,149.31,7.3123127]
[1749231266522,34.3,149.36,149.31,7.3123127]
[1749231266727,34.3,149.36,149.33,7.2641371]
[1749231267026,34.3,149.36,149.34,6.6901]
[1749231267624,34.34705983,149.36,149.34,6.73516096]
[1749231267925,34.34705983,149.36,149.35,6.6899]
[1749231268428,34.34705983,149.36,149.34,6.73516096]
[1749231270027,41.03665983,149.36,149.34,6.73516096]
[1749231272630,41.03665983,149.36,149.34,0.04506096]
[1749231273125,41.03665983,149.36,149.34,6.73536096]
[1749231274329,41.03665983,149.36,149.34,0.04506096]
[1749231274633,6.6899,149.35,149.34,0.04506096]
[1749231274836,34.34705983,149.36,149.34,6.73516096]
[1749231275334,34.34705983,149.36,149.34,0.04506096]
[1749231277735,34.34705983,149.36,149.35,6.6899]
[1749231278532,34.34705983,149.36,149.34,6.73516096]
[1749231279037,34.34705983,149.36,149.35,6.6899]
[1749231281439,34.34705983,149.36,149.34,6.73506096]
[1749231281739,34.34705983,149.36,149.34,0.04506096]
[1749231282033,34.34705983,149.36,149.35,6.6899]
[1749231282238,34.34705983,149.36,149.34,0.04506096]
[1749231282628,34.34705983,149.36,149.34,6.73516096]
[1749231282939,41.03655983,149.36,149.34,6.73516096]
[1749231283139,34.34705983,149.36,149.34,6.73516096]
[1749231283542,41.03655983,149.36,149.34,6.73516096]
[1749231291644,34.34705983,149.36,149.35,6.6899]
[1749231292251,41.03675983,149.36,149.34,6.73536096]
[1749231293147,34.34705983,149.36,149.35,11.35512792]
[1749231293642,41.03645983,149.36,149.35,4.66522792]
[1749231296648,41.03645983,149.36,149.34,4.71028888]
[1749231297246,6.6899,149.35,149.34,0.04506096]
[1749231300054,41.03665983,149.36,149.34,0.04506096]
[1749231300851,6.6899,149.35,149.34,0.04506096]
[1749231301746,41.03675983,149.36,149.34,0.04506096]
[1749231301947,41.03675983,149.36,149.34,4.71028888]
[1749231302147,41.03675983,149.36,149.34,11.40058888]
[1749231302752,6.6899,149.35,149.34,4.71028888]
[1749231303354,6.6899,149.35,149.34,0.04506096]
[1749231303555,11.24410818,149.35,149.34,0.04506096]
[1749231303752,11.29091435,149.36,149.34,6.73546096]
[1749231303953,11.2911268,149.36,149.34,6.73546096]
[1749231304254,11.29122819,149.36,149.34,6.73546096]
[1749231304553,6.73675983,149.36,149.34,6.73546096]
[1749231304853,11.29122819,149.36,149.34,6.73546096]
[1749231305047,0.04705983,149.36,149.34,0.04506096]
[1749231305252,4.60315698,149.36,149.35,11.35522792]
[1749231305453,0.04705983,149.36,149.35,4.66522792]
[1749231305645,4.6033406,149.36,149.35,4.66522792]
[1749231305847,0.04705983,149.36,149.35,4.66522792]
[1749231306045,4.60334067,149.36,149.34,11.40048888]
[1749231306550,4.55628084,149.35,149.34,0.04506096]